bitfinex/quotes_ETHUSD_20250725
["timestamp","ask_amount","ask_price","bid_price","bid_amount"]
[1753448363247,1.64300791,3704.0,3703.9,0.2522099]
[1753448363452,4.34279192,3704.0,3703.9,5.5522099]
[1753448364336,1.64300791,3704.0,3703.9,5.5522099]
[1753448364525,4.34279192,3704.0,3703.9,5.5522099]
[1753448364731,1.64300791,3704.0,3703.9,5.5522099]
[1753448365741,0.00681767,3704.0,3703.9,5.5522099]
[1753448367449,0.00681767,3704.0,3703.9,8.2520668]
[1753448367652,0.00681767,3704.0,3703.9,5.5522099]
[1753448367868,0.00681767,3704.0,3703.9,8.2520668]
[1753448368670,0.00681767,3704.0,3703.9,7.9998569]
[1753448368879,0.00681767,3704.0,3703.9,5.3]
[1753448369870,0.00681767,3704.0,3703.9,7.9998569]
[1753448371707,0.00681767,3704.0,3703.9,8.9245569]
[1753448371873,0.00681767,3704.0,3703.9,8.4371569]
[1753448373427,0.00681767,3704.0,3703.9,8.9245569]
[1753448373594,0.00681767,3704.0,3703.9,10.05178656]
[1753448378419,0.002,3704.0,3703.9,10.05178656]
[1753448378617,1e-08,3704.0,3703.9,10.60178656]
[1753448378820,1e-08,3704.0,3703.9,11.42168656]
[1753448379793,1e-08,3704.0,3703.9,14.26168656]
[1753448380004,1e-08,3704.0,3703.9,17.26168656]
[1753448380293,0.00481767,3705.0,3704.9,2.69912818]
[1753448380499,1.2353,3706.1,3704.9,8.61220695]
[1753448380500,0.00481767,3705.4,3704.9,8.61220695]
[1753448380720,0.00481767,3705.4,3705.3,2.6988368]
[1753448380904,0.4509,3706.4,3706.1,2.69825422]
[1753448381107,0.00481767,3706.2,3706.1,2.69825422]
[1753448381333,0.5861,3706.4,3706.3,2.69810862]
[1753448381628,0.59091767,3706.4,3706.3,7.84410862]
[1753448381827,0.14001767,3706.4,3706.3,7.84410862]
[1753448382137,0.00481767,3706.4,3706.3,7.84410862]
[1753448382693,0.14001767,3706.7,3706.6,2.69789024]
[1753448382995,0.14001767,3706.7,3706.6,7.85986914]
[1753448383217,0.00481767,3706.7,3706.6,5.135]
[1753448383408,0.45571767,3706.7,3706.6,5.135]
[1753448384021,0.45571767,3706.7,3706.6,7.83289024]
[1753448384323,0.00481767,3706.7,3706.6,7.83289024]
[1753448385828,0.00481767,3706.7,3706.6,8.30459024]
[1753448386236,0.1352,3707.0,3706.9,2.6976719]
[1753448386404,0.1352,3707.0,3706.9,7.8016719]
[1753448386599,1.2113,3707.3,3707.0,2.69759809]
[1753448386947,0.1352,3707.1,3707.0,2.69759809]
[1753448387326,0.1352,3707.1,3707.0,7.79359809]
[1753448387523,0.1352,3707.1,3706.8,2.69768504]
[1753448387524,0.1352,3707.1,3706.7,3.16950805]
[1753448387724,0.1352,3707.1,3707.0,2.69759913]
[1753448388041,0.14001767,3707.1,3707.0,7.79059913]
[1753448388239,0.00481767,3707.1,3707.0,7.79059913]
[1753448388651,0.00481767,3706.8,3706.7,0.1352]
[1753448388959,0.82411767,3706.6,3706.3,2.69805691]
[1753448389153,0.82411767,3706.6,3706.3,2.69810862]
[1753448389154,0.00481767,3706.4,3706.3,2.69810862]
[1753448389317,0.00481767,3706.4,3706.3,7.78110862]
[1753448390367,0.00481767,3705.9,3705.7,2.69854548]
[1753448390651,0.00481767,3705.9,3705.8,8.25317266]
[1753448391023,0.00481767,3705.9,3705.8,8.72187266]
[1753448391362,0.00481767,3705.9,3705.8,10.52543447]
[1753448391567,0.4509,3707.3,3705.9,1.3066]
[1753448391859,0.4509,3707.3,3706.8,2.69771574]
[1753448392060,0.002,3707.5,3706.9,5.075]
[1753448392214,0.4509,3707.2,3706.9,7.77262035]
[1753448392416,0.4509,3707.1,3707.0,2.69758392]
[1753448392836,0.4509,3707.1,3706.9,5.075]
[1753448393523,0.4509,3707.1,3707.0,2.69759913]
[1753448393922,0.4509,3707.1,3706.9,7.7726443]
[1753448394230,0.4509,3707.1,3707.0,2.69759913]
[1753448394838,0.4509,3707.4,3707.1,2.6974946]
[1753448395038,0.4509,3707.4,3707.2,7.76138538]
[1753448395241,0.4509,3707.3,3707.2,5.064]
[1753448396623,0.002,3707.5,3707.2,5.064]
[1753448396928,0.4529,3707.5,3707.2,5.064]
[1753448397320,0.4509,3707.4,3707.2,5.064]
[1753448397647,0.002,3707.5,3707.2,5.064]
[1753448397856,0.002,3707.5,3707.3,2.69731659]
[1753448398032,0.002,3707.5,3707.4,5.028]
[1753448398418,0.002,3707.5,3707.4,7.72530808]
[1753448400759,0.002,3707.5,3707.4,8.81475221]
[1753448401058,0.002,3707.5,3707.4,11.05655221]
[1753448401059,1e-08,3707.5,3707.4,11.05655221]
[1753448401551,1e-08,3707.5,3707.4,10.48455221]
[1753448401750,1e-08,3707.5,3707.4,8.64370808]
[1753448402422,0.45090001,3707.5,3707.1,6.478]
[1753448402748,0.4509,3707.4,3707.2,5.002]
[1753448402943,1e-08,3707.5,3707.2,5.002]
[1753448403144,1e-08,3707.5,3698.5,11.74996746]
[1753448403145,0.77,3707.2,3706.3,0.4717]
[1753448403323,0.4509,3707.1,3706.4,4.995]
[1753448403528,0.4509,3707.1,3706.4,5.4667]
[1753448403727,1e-08,3707.5,3706.5,0.96737963]
[1753448403945,1e-08,3707.5,3707.2,2.6974335]
[1753448404153,1e-08,3707.5,3707.3,4.993]
[1753448404348,1e-08,3707.5,3707.3,7.69036535]
[1753448404663,1e-08,3707.5,3707.4,3.16900808]
[1753448406467,0.49550001,3707.5,3706.8,4.38398048]
[1753448406670,0.49550001,3707.5,3707.1,2.69751172]
[1753448406870,0.49550001,3707.5,3707.2,4.983]
[1753448407054,1e-08,3707.5,3707.2,4.983]
[1753448407258,0.4955,3707.4,3707.2,4.983]
[1753448407430,0.8327,3707.2,3706.6,2.69788026]
[1753448407631,0.4955,3707.1,3706.3,0.498]
[1753448407847,0.4955,3707.1,3706.6,2.69788858]
[1753448408062,0.4955,3707.0,3706.7,4.969]
[1753448408769,10.07946013,3707.2,3706.7,8.09819722]
[1753448408945,10.07946013,3707.2,3706.8,2.69773838]
[1753448409141,10.07946013,3707.2,3706.5,2.69794729]
[1753448409142,0.8327,3707.2,3706.9,8.09402327]
[1753448409456,0.8327,3707.2,3707.1,2.69752636]
[1753448409643,0.8327,3707.2,3707.1,7.65752636]
[1753448409846,0.49550001,3707.5,3707.1,7.65752636]
[1753448410251,0.4955,3707.4,3707.1,4.96]
[1753448410437,0.4955,3707.3,3707.1,4.96]
[1753448410639,1e-08,3707.5,3707.1,4.96]
[1753448410843,0.4955,3707.2,3707.1,4.96]
[1753448411568,0.6307,3707.2,3707.1,4.96]
[1753448411788,0.1352,3707.2,3707.1,4.96]
[1753448411962,0.1352,3707.2,3707.1,7.65752636]
[1753448412475,0.1352,3707.2,3707.1,4.96]
[1753448412860,0.6307,3707.2,3707.1,4.96]
[1753448413987,6.3281536,3707.2,3707.1,4.96]
[1753448414274,16.41301373,3707.2,3707.1,4.96]
[1753448414772,2.69798159,3706.5,3705.9,0.4314]
[1753448415081,0.1352,3706.3,3706.2,2.69818142]
[1753448415237,3.19322871,3706.9,3706.2,2.69818142]
[1753448415434,0.1352,3706.3,3706.2,2.69818142]
[1753448415687,0.1352,3706.3,3706.2,8.54658142]
[1753448416380,0.1352,3706.3,3706.2,5.8484]
[1753448416580,0.1352,3706.3,3706.2,5.3504]
[1753448416872,0.1352,3706.3,3706.2,4.919]
[1753448416873,0.6307,3706.3,3706.2,4.919]
[1753448417237,0.1352,3706.3,3706.2,4.919]
[1753448417675,0.6307,3706.3,3706.2,4.919]
[1753448417848,0.1352,3706.3,3706.2,4.919]
[1753448418052,0.1352,3706.3,3706.2,8.04858142]
[1753448418738,5.69758181,3707.1,3706.4,2.6980336]
[1753448418957,5.69758181,3707.1,3706.2,8.54658142]
[1753448418958,3.0,3707.1,3706.5,5.3324]
[1753448419188,3.0,3707.1,3706.9,2.69766091]
[1753448419479,3.4955,3707.1,3707.0,4.897]
[1753448419662,0.1352,3706.8,3706.4,2.69798305]
[1753448419878,0.4955,3706.7,3706.5,4.895]
[1753448420281,0.1352,3706.6,3706.5,4.895]
[1753448421753,0.1352,3706.6,3706.5,5.3264]
[1753448422390,0.1352,3706.6,3706.5,4.895]
[1753448423900,0.1352,3706.6,3706.5,8.02436303]
[1753448425076,3.0,3707.1,3706.9,2.69766503]
[1753448425303,3.0,3707.1,3707.0,4.861]
[1753448425677,3.1352,3707.1,3707.0,4.861]
[1753448425985,5.83272636,3707.1,3707.0,4.861]
[1753448426190,6.32822636,3707.1,3707.0,4.861]
[1753448426626,3.6307,3707.1,3707.0,4.861]
[1753448426977,6.32822636,3707.1,3707.0,4.861]
[1753448427479,3.6307,3707.1,3707.0,4.861]
[1753448428219,6.32822636,3707.1,3707.0,4.861]
[1753448428414,3.6307,3707.1,3707.0,4.861]
[1753448428620,6.32822636,3707.1,3707.0,4.861]
[1753448429312,9.92591134,3707.1,3707.0,4.861]
[1753448429809,9.43041134,3707.1,3707.0,4.861]
[1753448430229,3.1352,3707.1,3707.0,5.7904]
[1753448431417,3.1352,3707.1,3707.0,5.2934]
[1753448432678,3.1352,3707.1,3707.0,7.99099913]
[1753448432998,3.1352,3707.1,3707.0,8.48899913]
[1753448433192,0.1352,3707.1,3707.0,8.48899913]
[1753448433387,0.1352,3707.1,3707.0,5.7914]
[1753448433918,0.1352,3707.1,3707.0,5.7384]
[1753448434594,0.1352,3707.1,3707.0,8.43599913]
[1753448434919,0.1352,3707.1,3707.0,0.9304]
[1753448435117,2.83272636,3707.1,3707.0,4.808]
[1753448435298,6.32822636,3707.1,3707.0,4.808]
[1753448437622,3.1352,3707.1,3707.0,5.2608]
[1753448437833,0.1352,3707.1,3707.0,5.7548]
[1753448438117,0.1352,3707.1,3707.0,8.45239913]
[1753448439805,0.1352,3707.1,3707.0,5.7548]
[1753448440012,0.1352,3707.1,3707.0,0.4538]
[1753448440414,0.5921,3707.1,3707.0,0.001]
[1753448440587,0.1352,3707.1,3707.0,0.001]
[1753448441221,0.1352,3707.1,3707.0,0.4538]
[1753448441608,0.1352,3707.1,3707.0,0.001]
[1753448442809,0.1352,3707.1,3707.0,0.4538]
[1753448443124,0.1352,3707.1,3707.0,0.001]
[1753448443522,0.1352,3707.1,3707.0,0.4538]
[1753448444025,0.1352,3707.1,3707.0,0.9478]
[1753448444220,2.83272636,3707.1,3707.0,0.9478]
[1753448444533,2.83272636,3707.1,3707.0,0.001]
[1753448444701,0.5921,3707.1,3707.0,0.001]
[1753448444934,0.1352,3707.1,3707.0,0.001]
[1753448445129,0.1352,3707.1,3707.0,0.4538]
[1753448446268,0.1352,3707.1,3707.0,0.9478]
[1753448446624,0.1352,3707.1,3707.0,1.7775]
[1753448446957,0.1352,3707.3,3707.2,2.69744393]
[1753448447157,1e-08,3707.5,3707.4,2.69730808]
[1753448447527,1e-08,3707.5,3707.4,3.64410808]
[1753448448059,1e-08,3707.5,3707.4,4.41616066]
[1753448450030,1e-08,3707.5,3707.4,5.24926066]
[1753448451071,1e-08,3707.5,3707.4,5.79926066]
[1753448452851,1e-08,3707.5,3707.4,1.4211]
[1753448453052,1e-08,3707.5,3707.0,0.001]
[1753448453253,1e-08,3707.5,3707.1,0.4528]
[1753448453452,1e-08,3707.5,3707.1,0.9468]
[1753448453672,1e-08,3707.5,3707.2,0.02697453]
[1753448454178,1e-08,3707.5,3707.3,0.494]
[1753448454570,1e-08,3707.5,3707.4,0.9468]
[1753448454880,3.15425698,3707.4,3707.0,0.001]
[1753448455080,0.4569,3707.3,3707.0,0.001]
[1753448455283,2.69751088,3707.2,3707.0,0.001]
[1753448455464,3.15429466,3707.3,3707.0,0.001]
[1753448455959,2.69746266,3707.2,3707.0,0.001]
[1753448456165,3.15436266,3707.2,3707.0,0.001]
[1753448456360,3.15442636,3707.1,3707.0,0.001]
[1753448456684,6.81649823,3707.1,3707.0,0.001]
[1753448457199,0.764,3706.9,3705.5,0.001]
[1753448457369,2.69841446,3705.9,3705.5,0.001]
[1753448457570,2.69857543,3705.7,3705.5,0.001]
[1753448458000,3.15538574,3705.8,3705.5,0.001]
[1753448458205,3.15538574,3705.8,3705.0,0.8085]
[1753448458206,0.824,3705.7,3703.8,0.7593]
[1753448458498,3.0,3706.3,3705.2,2.69890294]
[1753448458499,2.69839984,3705.9,3705.2,2.69890294]
[1753448458660,0.824,3706.0,3705.3,2.69876972]
[1753448458661,0.4569,3705.8,3705.3,2.69876972]
[1753448458860,6.52233609,3706.0,3705.1,2.69892609]
[1753448459075,3.824,3706.0,3705.1,2.69898248]
[1753448459272,3.824,3706.0,3705.4,2.6987587]
[1753448459273,3.0,3706.0,3705.4,2.6987587]
[1753448459472,3.50989633,3706.4,3705.7,2.69853543]
[1753448459698,3.50989633,3706.4,3705.6,2.69860122]
[1753448459900,0.4569,3706.3,3705.7,2.69854228]
[1753448460315,3.50952326,3706.9,3705.9,2.69836736]
[1753448460473,0.4569,3706.7,3706.2,2.69817344]
[1753448460672,0.4569,3706.7,3706.3,0.4528]
[1753448461308,0.4569,3706.6,3705.8,1.2078]
[1753448461511,0.4569,3706.6,3706.1,2.69819538]
[1753448461708,0.4569,3706.6,3706.2,0.4528]
[1753448461911,3.0,3707.0,3706.6,2.69787416]
[1753448461912,0.4569,3707.0,3706.6,2.69787416]
[1753448462084,0.8118,3707.4,3706.8,2.69769635]
[1753448462413,1e-08,3707.5,3706.9,0.47977671]
[1753448462613,1e-08,3707.5,3707.4,2.69730808]
[1753448462980,1e-08,3707.5,3707.4,4.56128116]
[1753448463416,1e-08,3707.5,3707.4,5.11128116]
[1753448463638,1e-08,3707.5,3707.4,5.31517594]
[1753448463812,1e-08,3707.5,3707.4,4.82117594]
[1753448464020,1e-08,3707.5,3707.4,4.04030808]
[1753448464186,1e-08,3707.5,3707.4,3.58750808]
[1753448464380,1e-08,3707.5,3707.4,2.83250808]
[1753448464721,0.45690001,3707.5,3706.9,2.69761719]
[1753448464878,0.1352,3707.3,3706.8,0.1352]
[1753448465077,0.1352,3707.3,3706.9,2.6976597]
[1753448465281,0.4569,3707.2,3706.9,2.6976597]
[1753448465492,0.4569,3707.2,3706.8,0.1352]
[1753448465693,0.4569,3707.2,3706.9,2.69766792]
[1753448465913,0.4569,3707.2,3706.8,0.1352]
[1753448466315,0.4569,3707.2,3706.9,2.6976719]
[1753448466917,0.4569,3707.2,3707.0,2.69759286]
[1753448467122,0.1352,3707.3,3707.1,0.4571]
[1753448467422,1e-08,3707.5,3707.4,2.69730808]
[1753448467823,1e-08,3707.5,3707.4,3.15440808]
[1753448468227,1e-08,3707.5,3707.4,3.67778116]
[1753448469110,1e-08,3707.5,3707.4,4.22778116]
[1753448469434,1e-08,3707.5,3707.4,4.48690119]
[1753448469935,1e-08,3707.5,3707.4,3.70440808]
[1753448470514,0.47530001,3707.5,3707.4,2.69730808]
[1753448470745,1e-08,3707.5,3707.4,3.73138116]
[1753448470914,1e-08,3707.5,3707.4,5.08650808]
[1753448471719,1e-08,3707.5,3707.4,5.11348116]
[1753448471918,1e-08,3707.5,3707.4,5.89457424]
[1753448472131,1e-08,3707.5,3707.4,5.86760116]
[1753448474268,1e-08,3707.5,3707.4,8.86760116]
[1753448476225,0.002,3708.3,3708.2,4.04812617]
[1753448476629,0.002,3708.4,3708.3,2.69665345]
[1753448476836,0.002,3708.4,3708.3,5.15783252]
[1753448477035,1e-08,3708.4,3708.3,5.15783252]
[1753448477433,1e-08,3708.4,3708.3,4.20433252]
[1753448477642,0.47530001,3708.4,3708.3,3.24665345]
[1753448477860,1e-08,3708.4,3708.3,3.24665345]
[1753448478168,1e-08,3708.4,3708.3,3.73071998]
[1753448478533,1e-08,3708.4,3708.3,3.70375345]
[1753448479665,1e-08,3708.4,3708.3,4.20015345]
[1753448479961,1e-08,3708.4,3708.3,4.776711]
[1753448480161,1e-08,3708.4,3708.3,2.69665345]
[1753448480367,0.47530001,3708.4,3708.3,2.69665345]
[1753448480769,0.90510001,3708.4,3708.0,2.69682567]
[1753448480965,0.9051,3708.3,3708.0,2.69682567]
[1753448481266,1.0403,3708.2,3707.9,2.69693338]
[1753448481430,0.4753,3708.1,3707.8,2.69700029]
[1753448481627,3.97559364,3708.1,3707.5,2.69722312]
[1753448481830,0.1352,3707.8,3707.5,2.69722312]
[1753448482244,0.4753,3707.7,3707.5,2.69722312]
[1753448482465,0.4753,3707.7,3707.4,2.6972824]
[1753448482681,0.4753,3707.6,3707.5,2.69722762]
[1753448483684,0.4753,3707.6,3707.4,2.69728164]
[1753448483881,0.4753,3707.5,3707.4,2.69728164]
[1753448484484,0.1352,3707.8,3707.4,2.69728164]
[1753448484662,3.0,3708.8,3707.9,2.69694436]
[1753448484867,0.1352,3708.2,3708.1,2.69679889]
[1753448485072,0.6105,3708.2,3708.1,2.69679889]
[1753448485294,0.4753,3708.2,3708.1,2.72376687]
[1753448485570,0.13520001,3708.4,3708.3,2.69665345]
[1753448485571,1e-08,3708.4,3708.3,2.69665345]
[1753448485774,0.4753,3708.3,3707.9,2.69689025]
[1753448485992,0.4753,3708.2,3708.1,2.69674232]
[1753448486205,0.4753,3708.2,3707.8,2.69695921]
[1753448486206,0.9051,3708.2,3707.8,2.69695921]
[1753448486390,0.8,3708.1,3707.7,2.69704269]
[1753448486707,0.8,3708.1,3707.5,2.69722891]
[1753448486708,0.1352,3707.8,3707.5,2.69722891]
[1753448486882,0.9051,3707.7,3707.2,0.1352]
[1753448487082,0.9051,3707.7,3706.9,5.69763509]
[1753448487083,0.9051,3707.6,3706.9,2.69766168]
[1753448487281,0.1352,3707.3,3707.1,2.69746419]
[1753448487502,0.1352,3707.3,3707.2,2.6974536]
[1753448487801,0.4753,3707.6,3707.5,2.69723533]
[1753448488607,0.6105,3707.9,3707.8,2.69701709]
[1753448489494,0.4753,3708.3,3707.6,2.69710196]
[1753448489693,0.4753,3708.3,3708.2,2.69672609]
[1753448489893,1e-08,3708.4,3707.7,0.16217089]
[1753448490095,1e-08,3708.4,3708.0,2.6968608]
[1753448490096,0.1352,3708.2,3708.0,2.6968608]
[1753448490296,0.9051,3708.1,3707.7,2.69703949]
[1753448490476,0.1352,3708.0,3707.7,2.69703949]
[1753448490673,0.6105,3708.0,3707.9,2.69694436]
[1753448490877,0.1352,3708.0,3707.9,2.69694436]
[1753448491231,0.1352,3708.0,3707.4,0.1352]
[1753448491530,0.1352,3708.0,3707.2,1.7834]
[1753448491531,0.4753,3707.9,3707.5,2.69719178]
[1753448491828,0.9004,3707.8,3707.6,2.69715505]
[1753448492133,0.4753,3707.7,3707.6,2.69715505]
[1753448492986,0.4753,3708.2,3708.0,2.69684258]
[1753448493204,0.6105,3708.2,3707.9,2.69694436]
[1753448493413,0.6105,3708.2,3708.1,2.69679889]
[1753448493916,1e-08,3708.4,3708.3,2.69665345]
[1753448494093,0.47530001,3708.4,3708.3,2.69665345]
[1753448494415,0.47530001,3708.4,3707.4,0.55]
[1753448494416,0.47530001,3708.4,3707.4,3.24727323]
[1753448494592,0.1352,3708.0,3707.9,2.69689656]
[1753448494919,0.7877,3707.9,3707.5,2.83241785]
[1753448495223,0.7877,3707.9,3707.2,2.69738331]
[1753448495224,0.1352,3707.6,3707.2,2.69738331]
[1753448495395,0.1352,3707.6,3706.9,2.6976719]
[1753448495396,0.4753,3707.5,3706.9,2.6976719]
[1753448495726,0.1352,3707.1,3706.9,2.69761475]
[1753448496018,0.1352,3707.1,3707.0,2.69759913]
[1753448496188,0.7877,3707.9,3707.3,2.69738084]
[1753448496189,0.1352,3707.4,3707.3,2.69738084]
[1753448496506,0.1352,3707.8,3707.5,2.69721385]
[1753448496710,0.5882,3707.8,3707.5,2.69721385]
[1753448496917,0.1352,3707.8,3707.6,2.69716242]
[1753448497085,0.453,3707.7,3707.6,2.69716242]
[1753448497286,0.1352,3707.8,3707.7,2.69708984]
[1753448498114,0.5882,3707.8,3707.6,2.69716169]
[1753448498302,0.5882,3707.8,3707.4,0.001]
[1753448498303,0.453,3707.7,3707.4,0.001]
[1753448498616,0.1352,3707.5,3707.4,0.001]
[1753448499116,7.55843533,3707.5,3707.4,0.001]
[1753448499497,4.8612,3707.5,3707.4,0.001]
[1753448499708,7.55843533,3707.5,3707.4,0.001]
[1753448500029,8.11257327,3707.5,3707.4,0.001]
[1753448501325,4.95773794,3707.5,3707.4,0.001]
[1753448502017,7.65497327,3707.5,3707.4,0.001]
[1753448503910,4.95773794,3707.5,3707.4,0.001]
[1753448504899,4.50473794,3707.5,3707.4,0.001]
[1753448505332,4.95773794,3707.5,3707.4,0.001]
[1753448505703,7.65497327,3707.5,3707.4,0.001]
[1753448506117,4.95773794,3707.5,3707.4,0.001]
[1753448506604,3.9506,3707.5,3707.4,0.001]
[1753448507000,3.1352,3707.5,3707.4,0.001]
[1753448507418,0.1352,3707.5,3707.4,0.001]
[1753448507902,0.1352,3707.5,3707.4,0.4421]
[1753448508099,0.1352,3707.5,3707.4,0.001]
[1753448512921,0.5882,3707.5,3707.4,0.001]
[1753448513115,3.74303533,3707.5,3707.4,0.001]
[1753448513320,4.46279403,3707.5,3707.4,0.001]
[1753448513843,4.00519403,3707.5,3707.4,0.001]
[1753448514441,0.8549587,3707.5,3707.4,0.001]
[1753448514644,0.1352,3707.5,3707.4,0.001]
[1753448515420,3.28543533,3707.5,3707.4,0.001]
[1753448517255,6.74303533,3707.5,3707.4,0.001]
[1753448518026,6.28543533,3707.5,3707.4,0.001]
[1753448518219,3.5882,3707.5,3707.4,0.001]
[1753448518534,3.1352,3707.5,3707.4,0.001]
[1753448519057,6.28543533,3707.5,3707.4,0.001]
[1753448519817,6.74303533,3707.5,3707.4,0.001]
[1753448520014,7.53703533,3707.5,3707.4,0.001]
[1753448520215,2.69781746,3706.7,3706.6,0.001]
[1753448520415,6.66291746,3706.7,3706.6,0.001]
[1753448520620,7.57351746,3706.7,3706.6,0.001]
[1753448522019,7.67584177,3706.7,3706.6,1e-08]
[1753448522455,7.92500755,3706.7,3706.6,1e-08]
[1753448523029,7.67584177,3706.7,3706.6,1e-08]
[1753448523761,7.92485777,3706.7,3706.6,1e-08]
[1753448525766,7.67584177,3706.7,3706.6,1e-08]
[1753448527165,7.21824177,3706.7,3706.6,1e-08]
[1753448530525,6.76524177,3706.7,3706.6,1e-08]
[1753448531153,7.24404177,3706.7,3706.6,1e-08]
[1753448532243,7.70164177,3706.7,3706.6,1e-08]
[1753448532460,7.24404177,3706.7,3706.6,1e-08]
[1753448532968,7.70164177,3706.7,3706.6,1e-08]
[1753448534472,7.24404177,3706.7,3706.6,1e-08]
[1753448534771,7.70164177,3706.7,3706.6,1e-08]
[1753448535185,7.24404177,3706.7,3706.6,1e-08]
[1753448535938,7.70164177,3706.7,3706.6,1e-08]
[1753448539055,7.24404177,3706.7,3706.6,1e-08]
[1753448539257,6.76524177,3706.7,3706.6,1e-08]
[1753448539703,4.06742431,3706.7,3706.6,0.46980001]
[1753448539996,3.1352,3706.7,3706.6,0.96660001]
[1753448540201,2.69741141,3707.3,3706.6,0.96660001]
[1753448540354,0.1352,3707.0,3706.7,0.9666]
[1753448540549,0.1352,3707.0,3706.9,0.8019]
[1753448540795,0.1352,3707.0,3706.9,1.7685]
[1753448541156,0.1352,3707.0,3706.9,4.4661719]
[1753448541352,0.10272162,3707.3,3706.9,1.7685]
[1753448541556,0.1352,3707.1,3707.0,3.66419913]
[1753448542264,3.0,3707.6,3707.1,2.69750654]
[1753448542465,0.8325,3708.3,3707.1,0.9666]
[1753448542678,0.93521155,3708.3,3707.2,3.66404586]
[1753448542854,0.1352,3707.6,3707.3,0.9666]
[1753448543057,0.8325,3707.5,3705.1,0.001]
[1753448543256,0.55,3706.4,3705.1,0.001]
[1753448543467,3.0,3705.5,3705.2,0.4698]
[1753448543760,0.8135,3705.7,3705.3,0.4698]
[1753448543983,5.69876396,3705.4,3705.3,0.4698]
[1753448544294,5.83396396,3705.4,3705.3,0.4698]
[1753448544490,3.1352,3705.4,3705.3,0.9666]
[1753448546092,3.0,3705.3,3705.1,0.001]
[1753448546294,0.1352,3705.2,3705.1,0.001]
[1753448546464,0.1352,3705.2,3705.1,0.4708]
[1753448546660,6.85458642,3705.2,3705.1,0.001]
[1753448546863,7.79098642,3705.2,3705.1,0.001]
[1753448547556,7.33338642,3705.2,3705.1,0.001]
[1753448549292,7.33338642,3705.2,3703.2,0.001]
[1753448549293,4.0114027,3703.7,3703.2,0.001]
[1753448549501,4.09605386,3703.7,3703.2,0.001]
[1753448549703,7.57485386,3703.7,3703.2,0.001]
[1753448551068,8.03245386,3703.7,3703.2,0.001]
[1753448551275,7.6848451,3703.7,3703.2,0.001]
[1753448551874,7.89073769,3703.7,3703.2,0.001]
[1753448552665,7.41193769,3703.7,3703.2,0.001]
[1753448553469,7.89073769,3703.7,3703.2,0.001]
[1753448553900,0.66923279,3703.8,3703.6,0.9676]
[1753448554218,8.31778676,3705.2,3704.6,2.69934675]
[1753448554219,0.2050888,3704.7,3704.6,2.69934675]
[1753448554414,0.2050888,3704.7,3704.6,0.9666]
[1753448554574,0.2050888,3704.7,3704.6,0.4698]
[1753448554885,2.6988368,3705.3,3704.2,0.9666]
[1753448555086,3.29729906,3705.2,3704.2,0.9666]
[1753448555295,0.59837325,3705.2,3704.3,2.69954876]
[1753448555503,0.59837325,3705.2,3704.2,0.9666]
[1753448555504,0.59837325,3705.2,3704.4,2.69948429]
[1753448555712,3.0,3705.3,3704.4,2.69948429]
[1753448555910,3.55,3705.1,3703.7,0.4698]
[1753448556212,3.0,3704.1,3703.6,0.001]
[1753448556371,5.7000027,3703.7,3703.6,0.001]
[1753448556775,6.3007027,3703.7,3703.6,0.001]
[1753448558611,3.6007,3703.7,3703.6,0.001]
[1753448558797,5.8352027,3703.7,3703.6,0.001]
[1753448559115,3.1352,3703.7,3703.6,0.001]
[1753448559613,0.1352,3703.7,3703.6,3.6407756]
[1753448559782,0.1352,3703.7,3703.6,4.35611477]
[1753448560126,0.1352,3703.7,3703.6,3.6407756]
[1753448560914,0.1352,3703.7,3703.6,0.001]
[1753448561076,3.3007027,3703.7,3703.6,0.001]
[1753448561281,6.3007027,3703.7,3703.6,0.001]
[1753448561484,3.1352,3703.7,3703.6,0.001]
[1753448562312,3.1352,3703.7,3703.6,0.4604]
[1753448562502,3.1352,3703.7,3703.6,0.001]
[1753448563323,6.6142227,3703.7,3703.6,0.001]
[1753448563621,3.44872,3703.7,3703.6,0.001]
[1753448564421,3.1352,3703.7,3703.6,0.001]
[1753448564908,5.8352027,3703.7,3703.6,0.001]
[1753448565800,6.3007027,3703.7,3703.6,0.001]
[1753448567026,10.1752,3703.7,3703.6,0.001]
[1753448567323,10.1752,3703.7,3703.6,0.4604]
[1753448567922,3.1352,3703.7,3703.6,0.9407]
[1753448568123,3.0,3703.7,3703.6,1.7697]
[1753448568419,0.1352,3703.8,3703.7,2.7000027]
[1753448568609,3.16477043,3704.8,3703.8,2.6999298]
[1753448568805,0.1352,3704.2,3703.9,3.63950361]
[1753448569016,0.1352,3704.2,3704.1,2.69971113]
[1753448569394,0.1352,3704.2,3704.1,3.15911113]
[1753448570301,0.1352,3704.2,3704.1,0.4594]
[1753448570513,0.1352,3704.2,3704.1,3.15911113]
[1753448572106,0.1352,3704.2,3704.1,3.63941113]
[1753448572308,7.04,3705.0,3704.2,0.7532]
[1753448572509,5.69878528,3705.4,3704.3,0.9397]
[1753448572722,0.1352,3704.7,3704.6,2.69934675]
[1753448572922,0.1352,3704.7,3704.6,3.15874675]
[1753448573122,0.1352,3704.7,3704.2,3.58796741]
[1753448573328,5.698805,3705.4,3704.2,1.2126]
[1753448573517,5.698805,3705.4,3704.2,0.4594]
[1753448573518,0.1352,3704.3,3704.2,0.4594]
[1753448573717,0.1352,3704.3,3703.9,1.2126]
[1753448574006,0.1352,3704.3,3704.0,3.15916108]
[1753448574504,0.1352,3704.3,3704.1,0.4594]
[1753448574706,0.1352,3704.3,3704.1,3.15908366]
[1753448574921,0.1352,3704.3,3704.1,2.69968366]
[1753448575147,0.1352,3704.3,3704.2,0.4594]
[1753448577640,0.1352,3704.3,3703.9,3.45304714]
[1753448578143,0.4655,3704.7,3703.5,0.4803]
[1753448578144,0.1352,3704.0,3703.5,0.8318]
[1753448578345,0.1352,3703.8,3703.5,3.53192054]
[1753448578545,0.1352,3703.8,3703.5,0.8318]